bitfinex-derivatives/quotes_BTCF0:USTF0_20241003
["timestamp","ask_amount","ask_price","bid_price","bid_amount"]
[1727940480800,0.013,61243.0,61241.0,0.001]
[1727940480999,0.013,61243.0,61241.0,0.002]
[1727940481000,0.025,61243.0,61241.0,0.002]
[1727940481510,0.027,61243.0,61242.0,0.002]
[1727940482213,0.012,61243.0,61241.0,0.001]
[1727940482403,0.426117,61242.0,61241.0,0.002]
[1727940482607,0.426117,61242.0,61241.0,0.001]
[1727940482608,0.065317,61242.0,61241.0,0.001]
[1727940483499,0.026,61243.0,61242.0,0.065317]
[1727940483908,0.027,61243.0,61242.0,0.066317]
[1727940484110,0.06679844,61243.0,61242.0,0.066317]
[1727940484310,0.05379844,61243.0,61242.0,0.066317]
[1727940484507,0.014,61243.0,61242.0,0.066317]
[1727940484815,0.027,61243.0,61242.0,0.067317]
[1727940487312,0.06684055,61243.0,61242.0,0.067317]
[1727940488405,0.06684055,61243.0,61242.0,0.002]
[1727940490019,0.13215655,61243.0,61242.0,0.002]
[1727940491411,0.092316,61243.0,61242.0,0.002]
[1727940492507,0.13201866,61243.0,61242.0,0.002]
[1727940495418,0.62185866,61243.0,61242.0,0.002]
[1727940496722,1.22185866,61243.0,61242.0,0.002]
[1727940498119,0.13201866,61243.0,61242.0,0.002]
[1727940498516,0.092316,61243.0,61242.0,0.002]
[1727940498715,0.13191143,61243.0,61242.0,0.002]
[1727940499821,0.092316,61243.0,61242.0,0.092]
[1727940500316,0.092316,61243.0,61242.0,0.157317]
[1727940500520,0.027,61243.0,61242.0,0.157317]
[1727940501113,0.027,61243.0,61242.0,0.067317]
[1727940501922,0.027,61243.0,61242.0,0.08794359]
[1727940505421,0.027,61243.0,61242.0,0.02262659]
[1727940507917,0.092316,61243.0,61242.0,0.02262659]
[1727940513624,0.13204835,61243.0,61242.0,0.02262659]
[1727940516040,0.027,61243.0,61242.0,0.17794359]
[1727940516626,0.027,61243.0,61242.0,0.11262659]
[1727940516832,0.027,61243.0,61242.0,0.02262659]
[1727940519936,0.2219886,61243.0,61242.0,0.002]
[1727940520130,0.22198448,61243.0,61242.0,0.002]
[1727940520432,0.182316,61243.0,61242.0,0.002]
[1727940522244,0.2218589,61243.0,61242.0,0.002]
[1727940522439,0.22185334,61243.0,61242.0,0.002]
[1727940522944,0.58265334,61243.0,61242.0,0.002]
[1727940525140,0.49265334,61243.0,61242.0,0.002]
[1727940525347,0.3878,61243.0,61242.0,0.157317]
[1727940527943,0.027,61243.0,61242.0,0.157317]
[1727940529248,0.027,61243.0,61242.0,0.002]
[1727940533353,0.182316,61243.0,61242.0,0.002]
[1727940535852,0.092316,61243.0,61242.0,0.002]
[1727940536756,0.027,61243.0,61242.0,0.002]
[1727940537050,0.6906,61262.0,61242.0,1.27972924]
[1727940537249,0.065297,61261.0,61254.0,0.155305]
[1727940537451,0.065297,61261.0,61255.0,0.0657]
[1727940537650,0.065297,61261.0,61255.0,1.5657]
[1727940538053,0.45328001,61262.0,61255.0,1.5657]
[1727940538352,0.065298,61260.0,61255.0,1.5657]
[1727940538554,0.155298,61260.0,61255.0,1.5657]
[1727940538743,0.155298,61260.0,61255.0,1.5977]
[1727940538947,0.155298,61260.0,61255.0,1.61918476]
[1727940539155,0.155298,61260.0,61255.0,1.68448776]
[1727940539668,0.022,61261.0,61258.0,0.09]
[1727940539848,0.022,61261.0,61260.0,0.09]
[1727940540053,0.014,61261.0,61257.0,0.155301]
[1727940540357,0.004,61260.0,61257.0,0.155301]
[1727940540857,0.096,61260.0,61255.0,1.61818476]
[1727940541156,0.096,61260.0,61250.0,0.40976483]
[1727940541157,0.065305,61254.0,61250.0,0.3608]
[1727940541358,0.09,61252.0,61250.0,0.3608]
[1727940542049,0.0315,61259.0,61251.0,0.065308]
[1727940542050,0.09,61258.0,61251.0,0.065308]
[1727940542247,0.0653,61259.0,61257.0,0.09]
[1727940542449,0.0653,61259.0,61258.0,0.0324]
[1727940542653,0.004,61260.0,61258.0,0.0324]
[1727940542851,0.004,61260.0,61254.0,0.0303]
[1727940543060,0.4508,61255.0,61250.0,0.05303653]
[1727940543363,0.09,61251.0,61250.0,0.05303653]
[1727940543553,0.13,61253.0,61250.0,0.05503653]
[1727940543755,0.13,61254.0,61250.0,0.05603653]
[1727940544054,0.13,61254.0,61250.0,0.05403653]
[1727940544261,0.065308,61251.0,61250.0,0.05803653]
[1727940544459,0.065308,61251.0,61250.0,0.05703653]
[1727940544665,0.065308,61251.0,61250.0,0.05403653]
[1727940545048,0.195308,61251.0,61250.0,0.001]
[1727940545453,0.195308,61251.0,61250.0,0.00059]
[1727940545454,0.194898,61251.0,61250.0,0.00059]
[1727940545654,0.064898,61251.0,61250.0,0.00059]
[1727940546960,0.064898,61251.0,61247.0,0.02120495]
[1727940547264,0.066898,61251.0,61246.0,0.065313]
[1727940547562,0.069898,61251.0,61246.0,0.08568252]
[1727940548059,0.070898,61251.0,61246.0,0.08568252]
[1727940548260,0.067898,61251.0,61246.0,0.08568252]
[1727940548466,0.067898,61251.0,61247.0,0.001]
[1727940549263,0.067898,61251.0,61246.0,0.08768252]
[1727940550262,0.065311,61248.0,61246.0,0.02336952]
[1727940550472,0.064901,61248.0,61246.0,0.02295952]
[1727940550658,0.064901,61248.0,61247.0,0.002]
[1727940551460,0.064901,61248.0,61246.0,0.01995952]
[1727940551461,0.064901,61248.0,61246.0,0.02295952]
[1727940551660,0.064901,61248.0,61246.0,0.003]
[1727940552864,0.064901,61248.0,61246.0,0.02361611]
[1727940553568,0.064901,61248.0,61246.0,0.02061611]
[1727940553772,0.064901,61248.0,61247.0,0.001]
[1727940554263,0.36312,61250.0,61242.0,0.065317]
[1727940554264,0.13,61244.0,61242.0,0.065317]
[1727940555062,0.065314,61246.0,61242.0,0.065317]
[1727940555257,0.065314,61246.0,61242.0,0.071317]
[1727940555458,0.065314,61246.0,61243.0,0.065316]
[1727940557066,0.13,61248.0,61243.0,0.065316]
[1727940557067,0.3608,61244.0,61243.0,0.065316]
[1727940557666,0.3608,61244.0,61243.0,0.074316]
[1727940558066,0.3608,61244.0,61243.0,0.009]
[1727940558267,0.426115,61244.0,61243.0,0.005]
[1727940558470,0.556115,61244.0,61243.0,0.009]
[1727940565570,0.516115,61244.0,61243.0,0.009]
[1727940566977,0.426115,61244.0,61243.0,0.164316]
[1727940567370,0.426115,61244.0,61243.0,0.074316]
[1727940568275,0.516115,61244.0,61243.0,0.009]
[1727940572382,1.605955,61244.0,61233.0,0.00624893]
[1727940572572,1.605955,61244.0,61233.0,0.00244893]
[1727940572573,0.155326,61234.0,61233.0,0.00244893]
[1727940574076,0.155326,61234.0,61233.0,0.01644893]
[1727940574372,0.156326,61234.0,61233.0,0.03044893]
[1727940575574,0.157326,61234.0,61233.0,0.02944893]
[1727940576474,0.156326,61234.0,61233.0,0.02044893]
[1727940577175,0.155326,61234.0,61233.0,0.00644893]
[1727940577394,0.156326,61234.0,61233.0,0.01244893]
[1727940578678,0.159326,61234.0,61233.0,0.00644893]
[1727940578880,0.159326,61234.0,61233.0,0.00244893]
[1727940579284,0.42855501,61244.0,61233.0,0.00244893]
[1727940579285,0.065322,61238.0,61233.0,0.15777593]
[1727940579584,0.42855501,61244.0,61238.0,0.065321]
[1727940579585,0.065322,61239.0,61238.0,0.065321]
[1727940579783,0.065323,61237.0,61235.0,0.065325]
[1727940580080,0.065323,61237.0,61236.0,1.5]
[1727940581273,0.065323,61237.0,61236.0,1.501]
[1727940581782,0.065323,61237.0,61236.0,1.5]
[1727940581989,0.065323,61237.0,61236.0,1.501]
[1727940582372,0.067323,61237.0,61236.0,1.5]
[1727940583088,0.067323,61237.0,61234.0,0.08585247]
[1727940583284,0.09,61235.0,61234.0,0.065326]
[1727940583475,0.09,61235.0,61234.0,1.565326]
[1727940583888,0.09,61235.0,61234.0,0.065326]
[1727940585087,0.091,61235.0,61234.0,0.065326]
[1727940585490,0.001,61235.0,61234.0,0.065326]
[1727940585787,0.001,61235.0,61234.0,0.066326]
[1727940585986,0.065323,61237.0,61234.0,0.066326]
[1727940586790,0.001,61235.0,61234.0,0.066326]
[1727940587086,0.001,61235.0,61234.0,0.067326]
[1727940587783,0.001,61235.0,61234.0,0.065326]
[1727940588181,0.070323,61237.0,61234.0,0.065326]
[1727940588387,0.068323,61237.0,61234.0,0.067326]
[1727940589087,0.003,61235.0,61234.0,0.067326]
[1727940589790,0.065323,61237.0,61234.0,0.067326]
[1727940589791,0.068323,61237.0,61234.0,0.067326]
[1727940590184,0.002,61235.0,61234.0,0.065326]
[1727940591295,0.005,61235.0,61234.0,0.065326]
[1727940591684,0.003,61235.0,61234.0,0.065326]
[1727940593393,0.005,61235.0,61234.0,0.065326]
[1727940595086,0.002,61235.0,61234.0,0.066326]
[1727940595789,0.002,61235.0,61234.0,0.065326]
[1727940596299,0.065323,61237.0,61234.0,0.067326]
[1727940597295,0.3608,61240.0,61235.0,0.065324]
[1727940597296,0.42612,61240.0,61235.0,0.065324]
[1727940597892,0.065322,61238.0,61235.0,0.065324]
[1727940598094,0.001,61237.0,61235.0,0.065324]
[1727940598888,0.065322,61238.0,61235.0,0.065324]
[1727940600303,0.065322,61238.0,61233.0,1.52337357]
[1727940600304,0.09,61239.0,61236.0,0.065323]
[1727940600593,0.065322,61238.0,61233.0,1.52337357]
[1727940600901,0.002,61237.0,61233.0,1.6376654]
[1727940601099,0.09,61234.0,61233.0,1.58870057]
[1727940601394,0.09,61234.0,61228.0,0.09]
[1727940601395,0.4508,61234.0,61228.0,0.04896483]
[1727940601594,0.59238011,61233.0,61222.0,0.0038]
[1727940601787,0.59238011,61233.0,61218.0,0.0038]
[1727940601788,0.065342,61219.0,61218.0,0.0038]
[1727940601990,0.155343,61219.0,61212.0,0.065349]
[1727940602190,0.09,61213.0,61212.0,0.065349]
[1727940603188,0.065344,61217.0,61211.0,0.02055762]
[1727940603388,0.065344,61217.0,61210.0,0.065351]
[1727940603688,0.001,61213.0,61212.0,0.014]
[1727940603993,0.001,61213.0,61212.0,0.079349]
[1727940604201,0.002,61213.0,61212.0,0.093349]
[1727940604792,0.002,61213.0,61212.0,0.028]
[1727940605394,0.067348,61213.0,61212.0,0.028]
[1727940605986,0.066348,61213.0,61212.0,0.014]
[1727940606386,0.787948,61213.0,61212.0,0.014]
[1727940606795,0.06535,61212.0,61201.0,0.0038]
[1727940606996,0.13,61202.0,61199.0,0.03]
[1727940607303,0.065362,61200.0,61198.0,0.06781479]
[1727940607595,0.058362,61200.0,61198.0,0.00245079]
[1727940607790,0.052362,61200.0,61198.0,0.00245079]
[1727940608203,0.13,61202.0,61198.0,0.00245079]
[1727940608389,0.065363,61199.0,61198.0,0.01645079]
[1727940610395,0.066363,61199.0,61198.0,0.01645079]
[1727940610900,0.066363,61199.0,61198.0,0.00245079]
[1727940611399,0.427163,61199.0,61191.0,0.0319]
[1727940611699,0.13,61192.0,61191.0,0.0319]
[1727940612700,0.13,61192.0,61191.0,0.097272]
[1727940612905,0.13,61196.0,61191.0,0.0319]
[1727940613107,0.13,61196.0,61194.0,0.065368]
[1727940613309,0.3628,61199.0,61195.0,0.065368]
[1727940613703,0.3618,61199.0,61195.0,0.065368]
[1727940613906,0.3618,61199.0,61196.0,1.5]
[1727940614306,0.3628,61199.0,61196.0,1.5]
[1727940614611,0.3618,61199.0,61196.0,1.5]
[1727940615009,0.3618,61199.0,61196.0,1.565366]
[1727940615401,0.3628,61199.0,61196.0,1.565366]
[1727940615803,0.3628,61199.0,61197.0,0.065365]
[1727940616005,0.3618,61199.0,61196.0,1.5]
[1727940616208,0.3628,61199.0,61196.0,1.5]
[1727940618012,0.13,61197.0,61196.0,1.5]
[1727940618312,0.195365,61197.0,61196.0,1.5]
[1727940618915,0.13,61197.0,61191.0,0.0319]
[1727940619109,0.065373,61190.0,61184.0,0.098479]
[1727940619314,0.13,61186.0,61184.0,0.098479]
[1727940620007,0.13,61190.0,61186.0,0.065377]
[1727940620608,0.131,61190.0,61186.0,0.065377]
[1727940621712,0.132,61190.0,61186.0,0.065377]
[1727940622818,0.00245168,61205.0,61199.0,0.065363]
[1727940623002,0.00245168,61205.0,61199.0,0.195363]
[1727940623203,0.00245168,61205.0,61189.0,0.065374]
[1727940623204,0.00245168,61205.0,61201.0,0.065361]
[1727940623407,0.00245168,61205.0,61202.0,1.5]
[1727940623612,0.00245168,61205.0,61204.0,0.065358]
[1727940624313,0.00345168,61205.0,61204.0,0.065358]
[1727940624716,0.00245168,61205.0,61204.0,0.065358]
[1727940625415,0.13245168,61205.0,61202.0,1.5]
[1727940626909,0.13345168,61205.0,61204.0,0.001]
[1727940627105,0.13445168,61205.0,61204.0,0.001]
[1727940627307,0.13445168,61205.0,61202.0,1.5]
[1727940627619,0.13345168,61205.0,61202.0,1.501]
[1727940627813,0.13245168,61205.0,61202.0,1.501]
[1727940628008,0.13245168,61205.0,61204.0,0.001]
[1727940628519,0.13245168,61205.0,61202.0,0.001]
[1727940630311,0.13245168,61205.0,61204.0,0.065358]
[1727940630616,0.00245168,61205.0,61204.0,0.065358]
[1727940631807,0.13345168,61205.0,61204.0,0.065358]
[1727940632514,0.131,61205.0,61204.0,0.065358]
[1727940633315,0.131,61205.0,61192.0,0.06884481]
[1727940633316,1.58196,61205.0,61192.0,0.0038]
[1727940633517,0.13,61193.0,61189.0,0.0038]
[1727940633716,0.13,61190.0,61188.0,0.129675]
[1727940634108,0.13,61190.0,61188.0,0.032]
[1727940634619,0.13,61190.0,61184.0,0.065379]
[1727940634923,0.4908,61186.0,61184.0,0.065379]
[1727940636221,0.4908,61186.0,61181.0,0.0323]
[1727940636525,0.4908,61186.0,61174.0,0.0038]
[1727940636526,0.13,61182.0,61174.0,0.0038]
[1727940636713,0.065391,61174.0,61168.0,0.04896483]
[1727940636914,0.13,61169.0,61167.0,0.04896483]
[1727940637322,0.13,61169.0,61164.0,0.08196483]
[1727940637323,0.195396,61169.0,61164.0,0.08196483]
[1727940637517,0.13,61169.0,61164.0,0.08196483]
[1727940637820,0.13,61169.0,61164.0,0.033]
[1727940638014,0.13,61169.0,61165.0,0.065399]
[1727940638516,0.13,61172.0,61167.0,0.065397]
[1727940638717,0.001,61169.0,61167.0,0.065397]
[1727940640019,0.002,61169.0,61168.0,0.065396]
[1727940641430,0.001,61169.0,61168.0,0.065396]
[1727940641617,0.002,61169.0,61168.0,0.065396]
[1727940642430,0.1338,61181.0,61174.0,0.06539]
[1727940642729,0.426177,61186.0,61164.0,0.08196483]
[1727940642730,0.13,61185.0,61175.0,0.098389]
[1727940643022,0.13,61185.0,61176.0,1.5316]
[1727940643023,0.13,61182.0,61176.0,1.5316]
[1727940643430,0.13,61182.0,61177.0,0.0319]
[1727940644014,0.3618,61184.0,61177.0,0.3927]
[1727940644322,0.001,61184.0,61183.0,0.06538]
[1727940644519,0.001,61184.0,61183.0,0.19538]
[1727940644726,0.13,61194.0,61190.0,0.065373]
[1727940644959,0.36312,61196.0,61191.0,1.5321]
[1727940645122,0.00245215,61199.0,61196.0,0.065366]
[1727940645615,0.13,61198.0,61196.0,0.065366]
[1727940647222,0.131,61198.0,61196.0,0.066366]
[1727940647626,0.131,61198.0,61196.0,0.001]
[1727940647828,0.132,61198.0,61196.0,0.001]
[1727940650017,0.131,61198.0,61196.0,0.004]
[1727940651429,0.131,61198.0,61193.0,0.06537]
[1727940651631,0.131,61198.0,61196.0,0.004]
[1727940652032,0.001,61198.0,61197.0,0.065365]
[1727940653438,0.002,61198.0,61197.0,0.065365]
[1727940654636,0.002,61198.0,61193.0,0.007]
[1727940654830,0.002,61198.0,61194.0,0.065368]
[1727940655030,0.002,61198.0,61193.0,0.007]
[1727940655031,0.195368,61195.0,61193.0,0.007]
[1727940656037,0.13,61194.0,61191.0,0.0321]
[1727940656939,0.125,61194.0,61193.0,0.005]
[1727940657545,0.126,61194.0,61191.0,0.0421]
[1727940658026,0.00245215,61199.0,61191.0,0.0361]
[1727940658231,0.00245215,61199.0,61196.0,0.065366]
[1727940658833,0.13245215,61199.0,61193.0,0.004]
[1727940659036,0.13,61195.0,61193.0,0.004]
[1727940659539,0.13,61195.0,61193.0,0.005]
[1727940659742,0.001,61194.0,61193.0,0.001]
[1727940660240,0.001,61194.0,61191.0,0.0331]
[1727940660241,0.065369,61194.0,61191.0,0.0321]
[1727940660429,0.065369,61194.0,61193.0,0.001]
[1727940660927,0.065369,61194.0,61186.0,0.02024307]
[1727940660928,1.81184,61194.0,61172.0,1.5]
[1727940661127,0.13,61184.0,61179.0,0.0038]
[1727940661334,0.13,61184.0,61178.0,0.065386]
[1727940661532,0.19538,61184.0,61173.0,0.05211697]
[1727940661733,0.065381,61183.0,61178.0,0.065386]
[1727940661935,0.0038,61192.0,61181.0,0.065382]
[1727940661936,0.065375,61188.0,61181.0,0.065382]
[1727940662127,0.065377,61187.0,61181.0,0.065382]
[1727940662333,0.065378,61186.0,61181.0,0.065382]
[1727940662930,0.7450582,61194.0,61181.0,0.13]
[1727940662931,0.065373,61191.0,61181.0,0.13]
[1727940663237,0.065373,61191.0,61186.0,0.065377]
[1727940663536,0.065373,61191.0,61187.0,0.065376]
[1727940663727,0.3608,61194.0,61189.0,0.13]
[1727940663928,0.3608,61194.0,61193.0,0.06537]
[1727940664336,0.3608,61194.0,61193.0,1.56537]
[1727940664740,0.00245215,61199.0,61193.0,1.56537]
[1727940664741,0.00245215,61199.0,61198.0,0.065364]
[1727940667338,0.00745215,61199.0,61198.0,0.065364]
[1727940668447,0.0038,61209.0,61208.0,0.065354]
[1727940668645,0.3608,61213.0,61208.0,0.065354]
[1727940668837,0.065346,61215.0,61208.0,0.065354]
[1727940669143,0.065346,61215.0,61209.0,0.0603]
[1727940669537,0.13,61213.0,61209.0,0.0603]
[1727940669744,0.13,61210.0,61205.0,0.3608]
[1727940669938,0.13,61206.0,61199.0,0.065363]
[1727940670138,0.13,61200.0,61198.0,0.0301]
[1727940670342,0.195363,61200.0,61198.0,0.0301]
[1727940670846,0.065358,61204.0,61198.0,0.095464]
[1727940671044,0.065358,61204.0,61199.0,0.065363]
[1727940671342,0.001,61200.0,61198.0,0.0331]
[1727940671546,0.001,61200.0,61198.0,0.0341]
[1727940671547,0.002,61200.0,61198.0,0.0341]
[1727940671841,0.002,61200.0,61198.0,0.0351]
[1727940671842,0.001,61200.0,61198.0,0.0351]
[1727940672436,0.001,61200.0,61198.0,0.100464]
[1727940673046,0.3608,61209.0,61199.0,0.3618]
[1727940673047,0.13,61209.0,61199.0,0.3618]
[1727940673240,0.195353,61209.0,61203.0,0.065359]
[1727940673543,0.13,61209.0,61199.0,0.3618]
[1727940673748,0.065357,61206.0,61199.0,0.3608]
[1727940673948,0.13,61204.0,61199.0,0.3608]
[1727940675052,0.06536,61202.0,61199.0,0.3648]
[1727940675744,0.065362,61201.0,61199.0,0.3648]
[1727940676548,0.195362,61200.0,61199.0,0.3648]
[1727940676750,0.195362,61200.0,61199.0,0.3618]
[1727940676940,0.13,61200.0,61199.0,0.3648]
[1727940677254,0.13,61204.0,61199.0,0.3648]
[1727940677642,0.13,61204.0,61201.0,0.065361]
[1727940678059,0.195358,61204.0,61201.0,0.065361]
[1727940678350,0.13,61204.0,61199.0,0.3648]
[1727940678544,0.195362,61200.0,61199.0,0.3648]
[1727940678743,0.195362,61200.0,61199.0,0.004]
[1727940680146,0.065364,61199.0,61196.0,0.065366]
[1727940681065,0.133,61200.0,61198.0,0.065364]
[1727940681259,0.133,61200.0,61192.0,0.065371]
[1727940681553,0.133,61200.0,61199.0,0.065363]
[1727940681554,0.002,61200.0,61199.0,0.065363]
[1727940681761,0.3608,61204.0,61197.0,0.033]
[1727940681948,0.065359,61203.0,61198.0,0.065364]
[1727940682346,0.065359,61203.0,61200.0,0.065362]
[1727940682563,0.065359,61203.0,61197.0,0.033]
[1727940682564,0.3608,61204.0,61203.0,0.065359]
[1727940683777,0.3628,61204.0,61203.0,0.065359]
[1727940683959,0.3628,61204.0,61199.0,0.02075181]
[1727940684165,0.3628,61204.0,61200.0,0.0305]
[1727940684475,0.3658,61204.0,61200.0,0.0305]
[1727940684770,0.3658,61204.0,61201.0,1.5]
[1727940684961,0.3628,61204.0,61201.0,1.5]
[1727940685772,0.3628,61204.0,61200.0,0.095862]
[1727940686481,0.3608,61204.0,61200.0,0.095862]
[1727940686773,0.3608,61204.0,61200.0,0.097862]
[1727940686774,0.3618,61204.0,61200.0,0.097862]
[1727940687371,0.13,61201.0,61200.0,0.002]
[1727940688177,0.3608,61204.0,61200.0,0.002]
[1727940688376,0.3608,61210.0,61208.0,0.065353]
[1727940688575,0.3608,61210.0,61209.0,1.5]
[1727940688963,0.49312,61218.0,61209.0,1.5]
[1727940689178,0.3608,61218.0,61209.0,1.5]
[1727940689474,0.12994,61221.0,61213.0,0.065348]
[1727940689475,0.06534,61221.0,61213.0,0.065348]
[1727940689673,0.13,61222.0,61213.0,0.065348]
[1727940689674,0.065342,61220.0,61213.0,0.065348]
[1727940689871,0.065342,61219.0,61213.0,0.065348]
[1727940690270,0.008,61218.0,61213.0,0.065348]
[1727940690779,0.065342,61219.0,61213.0,0.065348]
[1727940691077,0.06535,61212.0,61210.0,0.3932]
[1727940691265,0.13,61211.0,61209.0,1.5]
[1727940691467,0.065353,61209.0,61205.0,0.08146483]
[1727940691679,0.13,61206.0,61205.0,0.0325]
[1727940691867,0.13,61206.0,61199.0,0.0324]
[1727940692070,0.195359,61203.0,61199.0,0.0324]
[1727940692377,0.195359,61203.0,61199.0,1.5324]
[1727940692677,0.13,61203.0,61199.0,1.5324]
[1727940692865,0.3608,61214.0,61205.0,0.065357]
[1727940692866,0.195351,61211.0,61205.0,0.065357]
[1727940693068,0.195351,61211.0,61206.0,0.032]
[1727940693670,0.3608,61214.0,61206.0,0.032]
[1727940693979,0.065349,61213.0,61208.0,0.065354]
[1727940694180,0.005,61211.0,61208.0,0.065354]
[1727940694871,0.011,61211.0,61208.0,0.065354]
[1727940695675,0.006,61211.0,61208.0,0.065354]
[1727940696274,0.008,61211.0,61208.0,0.065354]
[1727940696470,0.015,61211.0,61208.0,0.065354]
[1727940696983,0.015,61211.0,61209.0,0.065353]
[1727940699282,0.016,61211.0,61209.0,0.065353]
[1727940699586,0.017,61211.0,61209.0,0.065353]
[1727940700880,0.017,61211.0,61210.0,0.065352]
[1727940702279,0.009,61211.0,61210.0,0.065352]
[1727940702675,0.019,61211.0,61210.0,0.065352]
[1727940707583,0.0038,61223.0,61210.0,0.065352]
[1727940707584,0.0038,61223.0,61210.0,1.56523683]
[1727940707880,0.426136,61226.0,61221.0,0.065339]
[1727940708988,0.439136,61226.0,61221.0,0.065339]
[1727940709186,0.01,61223.0,61221.0,0.065339]
[1727940709792,0.441456,61226.0,61221.0,0.065339]
[1727940709986,0.452136,61226.0,61221.0,0.065339]
[1727940710690,0.013,61223.0,61218.0,0.2]
[1727940710885,0.013,61223.0,61222.0,0.626139]
[1727940711078,0.013,61226.0,61222.0,2.10976483]
[1727940711391,0.065325,61235.0,61222.0,2.10976483]
[1727940711591,0.065325,61235.0,61229.0,0.065331]
[1727940712297,0.0308,61239.0,61222.0,2.11076483]
[1727940712493,0.065327,61233.0,61227.0,0.065333]
[1727940712797,0.00345061,61230.0,61227.0,0.065333]
[1727940712991,0.00645061,61230.0,61227.0,0.065333]
[1727940713793,0.00345061,61230.0,61228.0,0.065332]
[1727940714498,0.00345061,61230.0,61222.0,2.0608]
[1727940714499,0.00345061,61230.0,61223.0,0.095437]
[1727940714695,0.06878161,61230.0,61223.0,0.095437]
[1727940715589,0.065335,61226.0,61223.0,0.0301]
[1727940715785,0.065335,61226.0,61223.0,0.0341]
[1727940716200,0.065335,61226.0,61223.0,0.0381]
[1727940718498,0.13,61229.0,61223.0,0.099438]
[1727940718798,0.00245061,61230.0,61223.0,0.0381]
[1727940718990,0.00245061,61230.0,61228.0,0.065332]
[1727940719187,0.00245061,61230.0,61223.0,0.103437]
[1727940719387,0.065333,61227.0,61223.0,0.0381]
[1727940720484,0.065337,61224.0,61223.0,0.0381]
[1727940720686,0.195337,61224.0,61223.0,0.008]
[1727940721194,0.195337,61224.0,61223.0,0.004]
[1727940721794,0.195337,61224.0,61220.0,0.06534]
[1727940721998,0.065332,61229.0,61223.0,0.008]
[1727940722296,0.00245061,61230.0,61224.0,0.13]
[1727940722495,0.00245061,61230.0,61229.0,0.065331]
[1727940723194,0.00245061,61230.0,61229.0,0.097331]
[1727940723897,0.00245061,61230.0,61229.0,0.11835443]
[1727940724893,0.00545061,61230.0,61229.0,0.11835443]
[1727940725094,0.00645061,61230.0,61229.0,0.11835443]
[1727940725704,0.00545061,61230.0,61229.0,0.11835443]
[1727940727303,0.133,61230.0,61224.0,0.08046483]
[1727940727495,0.13,61225.0,61224.0,0.0315]
[1727940727801,0.065339,61222.0,61221.0,0.3608]
[1727940728009,0.065339,61222.0,61214.0,0.47480964]
[1727940728010,0.065341,61220.0,61214.0,0.3608]
[1727940728305,0.4908,61225.0,61214.0,0.44721203]
[1727940728510,0.556136,61225.0,61224.0,0.003]
[1727940728805,0.556136,61225.0,61224.0,0.006]
[1727940729100,0.556136,61225.0,61224.0,0.003]
[1727940729300,0.556136,61225.0,61218.0,0.065342]
[1727940729504,0.065337,61224.0,61218.0,0.065342]
[1727940730800,0.065337,61224.0,61219.0,0.065342]
[1727940731096,0.49412,61225.0,61221.0,0.06534]
[1727940731097,0.00332,61225.0,61221.0,0.06534]
[1727940731303,0.002,61225.0,61221.0,0.06534]
[1727940731809,0.001,61225.0,61219.0,0.13]
[1727940732003,0.3608,61230.0,61227.0,0.065333]
[1727940732200,0.069128,61233.0,61228.0,0.065332]
[1727940732201,0.065328,61233.0,61228.0,0.065332]
[1727940732502,0.065323,61237.0,61230.0,0.065329]
[1727940733101,0.065323,61237.0,61231.0,0.065329]
[1727940733801,0.065324,61236.0,61231.0,0.065329]
[1727940735201,0.006,61237.0,61233.0,0.065327]
[1727940735400,0.005,61236.0,61233.0,0.065327]
[1727940736515,0.001,61236.0,61233.0,0.066327]
[1727940736707,0.001,61236.0,61233.0,0.001]
[1727940737015,0.001,61236.0,61235.0,0.195325]
[1727940737700,0.001,61236.0,61235.0,0.065325]
[1727940738408,0.007,61236.0,61235.0,0.065325]
[1727940738598,0.008,61236.0,61235.0,0.065325]
[1727940738795,0.001,61236.0,61235.0,0.065325]
[1727940738997,0.01,61236.0,61235.0,0.066325]
[1727940739908,0.00245009,61243.0,61235.0,1.286245]
[1727940740207,0.0038,61251.0,61245.0,0.065314]
[1727940740510,0.065306,61253.0,61247.0,0.13]
[1727940741001,0.065306,61253.0,61246.0,0.095313]
[1727940741800,0.067306,61253.0,61246.0,0.095313]
[1727940742099,0.067306,61253.0,61247.0,0.065312]
[1727940742405,0.066306,61253.0,61248.0,0.195311]
[1727940744004,0.065306,61253.0,61248.0,0.195311]
[1727940744312,0.002,61253.0,61249.0,0.06531]
[1727940744498,0.002,61253.0,61248.0,0.13]
[1727940744700,0.003,61253.0,61252.0,0.065307]
[1727940744913,0.003,61253.0,61252.0,0.556107]
[1727940745710,0.429895,61263.0,61252.0,0.4908]
[1727940745909,0.426095,61263.0,61257.0,0.065301]
[1727940746115,0.51141864,61270.0,61256.0,0.13]
[1727940746311,0.4908,61270.0,61261.0,0.13]
[1727940746507,0.065294,61265.0,61261.0,0.13]
[1727940746701,0.3608,61270.0,61254.0,0.0038]
[1727940746702,0.065295,61264.0,61257.0,0.13]
[1727940748214,0.065295,61264.0,61262.0,0.13]
[1727940748415,0.065295,61264.0,61258.0,0.225399]